[Event "Titled Tuesday Blitz August 08 Late 2023"]
[White "Ai, Evan"]
[Black "Mickiewicz, Piotr"]
[WhiteFideId "2094770"]
[BlackFideId "1114891"]
[WhiteElo "2326"]
[BlackElo "2480"]
[Result "1-0"]
[Round "8"]
[TimeControl "180+1"]
[Date "2023.08.08"]
[WhiteClock "0:00:10"]
[BlackClock "0:00:01"]
[Board "109"]

1. e4 {[%clk 0:02:56]}  c5 {[%clk 0:02:59]} 2. Nf3 {[%clk 0:02:55]}  d6 {[%clk 0:03:00]} 3. d4 {[%clk 0:02:54]}  cxd4 {[%clk 0:03:01]} 4. Nxd4 {[%clk 0:02:55]}  Nf6 {[%clk 0:03:01]} 5. Nc3 {[%clk 0:02:55]}  a6 {[%clk 0:03:01]} 6. f3 {[%clk 0:02:54]}  g6 {[%clk 0:02:57]} 7. Be3 {[%clk 0:02:54]}  b5 {[%clk 0:02:53]} 8. Qd2 {[%clk 0:02:53]}  Nbd7 {[%clk 0:02:52]} 9. a4 {[%clk 0:02:49]}  bxa4 {[%clk 0:02:45]} 10. Rxa4 {[%clk 0:02:39]}  Bb7 {[%clk 0:02:38]} 11. Rb4 {[%clk 0:02:33]}  Rb8 {[%clk 0:02:19]} 12. Bc4 {[%clk 0:02:25]}  Bg7 {[%clk 0:02:13]} 13. O-O {[%clk 0:02:14]}  O-O {[%clk 0:02:12]} 14. Ra1 {[%clk 0:01:47]}  Ne5 {[%clk 0:01:39]} 15. Be2 {[%clk 0:01:23]}  Qc7 {[%clk 0:01:37]} 16. Nb3 {[%clk 0:01:16]}  Rfc8 {[%clk 0:01:01]} 17. Bb6 {[%clk 0:01:08]}  Qd7 {[%clk 0:00:55]} 18. Ba7 {[%clk 0:00:42]}  Ra8 {[%clk 0:00:53]} 19. Bf2 {[%clk 0:00:33]}  Rcb8 {[%clk 0:00:37]} 20. Na4 {[%clk 0:00:30]}  a5 {[%clk 0:00:27]} 21. Nb6 {[%clk 0:00:26]}  Qd8 {[%clk 0:00:26]} 22. Rxa5 {[%clk 0:00:21]}  Rxa5 {[%clk 0:00:22]} 23. Nxa5 {[%clk 0:00:22]}  Nc6 {[%clk 0:00:18]} 24. Nxb7 {[%clk 0:00:15]}  Rxb7 {[%clk 0:00:17]} 25. Rb3 {[%clk 0:00:15]}  Nd7 {[%clk 0:00:15]} 26. Ba6 {[%clk 0:00:13]}  Rxb6 {[%clk 0:00:15]} 27. Bxb6 {[%clk 0:00:13]}  Nxb6 {[%clk 0:00:16]} 28. h3 {[%clk 0:00:11]}  Nd4 {[%clk 0:00:15]} 29. Rc3 {[%clk 0:00:10]}  Qa8 {[%clk 0:00:10]} 30. Ra3 {[%clk 0:00:10]}  Qc6 {[%clk 0:00:09]} 31. c3 {[%clk 0:00:09]}  Nb5 {[%clk 0:00:08]} 32. Ra5 {[%clk 0:00:08]}  Nc7 {[%clk 0:00:08]} 33. Bd3 {[%clk 0:00:08]}  Nc4 {[%clk 0:00:08]} 34. Bxc4 {[%clk 0:00:07]}  Qxc4 {[%clk 0:00:09]} 35. Kh2 {[%clk 0:00:06]}  Qc6 {[%clk 0:00:09]} 36. Ra7 {[%clk 0:00:05]}  Qb6 {[%clk 0:00:10]} 37. Ra3 {[%clk 0:00:05]}  Be5+ {[%clk 0:00:09]} 38. f4 {[%clk 0:00:05]}  Bg7 {[%clk 0:00:09]} 39. e5 {[%clk 0:00:04]}  d5 {[%clk 0:00:09]} 40. c4 {[%clk 0:00:03]}  g5 {[%clk 0:00:08]} 41. cxd5 {[%clk 0:00:03]}  gxf4 {[%clk 0:00:08]} 42. d6 {[%clk 0:00:04]}  exd6 {[%clk 0:00:08]} 43. exd6 {[%clk 0:00:05]}  Ne6 {[%clk 0:00:08]} 44. d7 {[%clk 0:00:05]}  Nd8 {[%clk 0:00:08]} 45. Ra8 {[%clk 0:00:05]}  Bf6 {[%clk 0:00:08]} 46. Qxf4 {[%clk 0:00:05]}  Qe6 {[%clk 0:00:07]} 47. Qg4+ {[%clk 0:00:04]}  Kf8 {[%clk 0:00:07]} 48. Qxe6 {[%clk 0:00:04]}  fxe6 {[%clk 0:00:08]} 49. Kg3 {[%clk 0:00:05]}  Ke7 {[%clk 0:00:09]} 50. Ra7 {[%clk 0:00:05]}  Be5+ {[%clk 0:00:07]} 51. Kg4 {[%clk 0:00:05]}  Nc6 {[%clk 0:00:07]} 52. d8=Q+ {[%clk 0:00:06]}  Kxd8 {[%clk 0:00:06]} 53. Rxh7 {[%clk 0:00:06]}  Bxb2 {[%clk 0:00:05]} 54. Rh6 {[%clk 0:00:07]}  Kd7 {[%clk 0:00:05]} 55. Rh7+ {[%clk 0:00:07]}  Kd6 {[%clk 0:00:05]} 56. Kg5 {[%clk 0:00:07]}  Ne5 {[%clk 0:00:04]} 57. g4 {[%clk 0:00:08]}  Nf3+ {[%clk 0:00:04]} 58. Kf4 {[%clk 0:00:08]}  Nd4 {[%clk 0:00:03]} 59. Ke4 {[%clk 0:00:08]}  Nb5 {[%clk 0:00:03]} 60. g5 {[%clk 0:00:08]}  Nc3+ {[%clk 0:00:03]} 61. Kd3 {[%clk 0:00:08]}  Nd5 {[%clk 0:00:03]} 62. h4 {[%clk 0:00:07]}  Nf4+ {[%clk 0:00:03]} 63. Ke4 {[%clk 0:00:08]}  Ne2 {[%clk 0:00:01]} 64. Rb7 {[%clk 0:00:07]}  Ng3+ {[%clk 0:00:02]} 65. Kf3 {[%clk 0:00:07]}  Be5 {[%clk 0:00:02]} 66. Rb6+ {[%clk 0:00:07]}  Ke7 {[%clk 0:00:01]} 67. Rb5 {[%clk 0:00:08]}  Nf5 {[%clk 0:00:01]} 68. Rxe5 {[%clk 0:00:08]}  Nxh4+ {[%clk 0:00:01]} 69. Kg4 {[%clk 0:00:09]}  Ng6 {[%clk 0:00:02]} 70. Re4 {[%clk 0:00:09]}  Kf7 {[%clk 0:00:02]} 71. Ra4 {[%clk 0:00:09]}  Ne7 {[%clk 0:00:02]} 72. Ra7 {[%clk 0:00:10]}  e5 {[%clk 0:00:02]} 73. Kh5 {[%clk 0:00:10]}  Ke6 {[%clk 0:00:03]} 74. g6 {[%clk 0:00:10]}  Nf5 {[%clk 0:00:03]} 75. g7 {[%clk 0:00:10]}  Nxg7+ {[%clk 0:00:02]} 76. Rxg7 {[%clk 0:00:11]}  Kf5 {[%clk 0:00:03]} 77. Rg1 {[%clk 0:00:11]}  Kf4 {[%clk 0:00:03]} 78. Kh4 {[%clk 0:00:10]}  e4 {[%clk 0:00:03]} 79. Rf1+ {[%clk 0:00:10]}  Ke3 {[%clk 0:00:03]} 80. Kg3 {[%clk 0:00:11]}  Kd2 {[%clk 0:00:03]} 81. Rf2+ {[%clk 0:00:09]}  Ke1 {[%clk 0:00:01]} 82. Ra2 {[%clk 0:00:09]}  e3 {[%clk 0:00:02]} 83. Kf3 {[%clk 0:00:09]}  e2 {[%clk 0:00:02]} 84. Rxe2+ {[%clk 0:00:10]}  Kd1 {[%clk 0:00:01]} 85. Ke3 {[%clk 0:00:10]} 1-0


[Site "https://www.chess.com"]

[Event "Titled Tuesday Blitz August 08 Late 2023"]
[White "Womacka, Mathias"]
[Black "Weisz, Bryan"]
[WhiteFideId "4611390"]
[BlackFideId "30934133"]
[WhiteElo "2470"]
[BlackElo "2317"]
[Result "1/2-1/2"]
[Round "8"]
[TimeControl "180+1"]
[Date "2023.08.08"]
[WhiteClock "0:00:21"]
[BlackClock "0:00:09"]
[Board "110"]

1. e4 {[%clk 0:03:00]}  a5 {[%clk 0:02:54]} 2. d4 {[%clk 0:02:59]}  d6 {[%clk 0:02:52]} 3. Nc3 {[%clk 0:02:58]}  g6 {[%clk 0:02:52]} 4. f4 {[%clk 0:02:57]}  Bg7 {[%clk 0:02:49]} 5. Nf3 {[%clk 0:02:58]}  Na6 {[%clk 0:02:44]} 6. a3 {[%clk 0:02:34]}  c6 {[%clk 0:02:33]} 7. Bd3 {[%clk 0:02:30]}  Bg4 {[%clk 0:02:31]} 8. Be3 {[%clk 0:02:27]}  e5 {[%clk 0:02:10]} 9. dxe5 {[%clk 0:02:16]}  dxe5 {[%clk 0:02:10]} 10. fxe5 {[%clk 0:02:04]}  Bxe5 {[%clk 0:01:55]} 11. h3 {[%clk 0:01:55]}  Bg3+ {[%clk 0:01:45]} 12. Kf1 {[%clk 0:01:54]}  Be6 {[%clk 0:01:29]} 13. Ne2 {[%clk 0:01:31]}  Bc7 {[%clk 0:01:18]} 14. Nf4 {[%clk 0:01:29]}  Nf6 {[%clk 0:01:08]} 15. Nxe6 {[%clk 0:00:47]}  fxe6 {[%clk 0:01:08]} 16. Ng5 {[%clk 0:00:47]}  Nh5 {[%clk 0:00:51]} 17. Bxa6 {[%clk 0:00:41]}  O-O+ {[%clk 0:00:28]} 18. Kg1 {[%clk 0:00:39]}  Bb6 {[%clk 0:00:18]} 19. Bxb6 {[%clk 0:00:22]}  Qxb6+ {[%clk 0:00:18]} 20. Kh2 {[%clk 0:00:23]}  Qc7+ {[%clk 0:00:13]} 21. Kg1 {[%clk 0:00:23]}  Qb6+ {[%clk 0:00:12]} 22. Kh2 {[%clk 0:00:22]}  Qc7+ {[%clk 0:00:09]} 23. Kg1 {[%clk 0:00:21]}  Qb6+ {[%clk 0:00:09]} 1/2-1/2


[Site "https://www.chess.com"]

[Event "Titled Tuesday Blitz August 08 Late 2023"]
[White "Tqebuchava, Zurab"]
[Black "kiwibobo"]
[WhiteFideId "13601113"]
[WhiteElo "2268"]
[BlackElo "2383"]
[Result "1/2-1/2"]
[Round "8"]
[TimeControl "180+1"]
[Date "2023.08.08"]
[WhiteClock "0:00:27"]
[BlackClock "0:01:19"]
[Board "113"]

1. e4 {[%clk 0:03:00]}  e5 {[%clk 0:03:00]} 2. Nf3 {[%clk 0:02:59]}  Nc6 {[%clk 0:03:00]} 3. Bb5 {[%clk 0:02:59]}  a6 {[%clk 0:03:00]} 4. Ba4 {[%clk 0:02:58]}  Nf6 {[%clk 0:03:01]} 5. O-O {[%clk 0:02:58]}  b5 {[%clk 0:03:01]} 6. Bb3 {[%clk 0:02:57]}  Bc5 {[%clk 0:03:02]} 7. Nxe5 {[%clk 0:02:54]}  Nxe5 {[%clk 0:03:02]} 8. d4 {[%clk 0:02:54]}  Bxd4 {[%clk 0:03:02]} 9. Qxd4 {[%clk 0:02:54]}  d6 {[%clk 0:03:03]} 10. Qe3 {[%clk 0:02:41]}  O-O {[%clk 0:02:56]} 11. h3 {[%clk 0:02:39]}  Bb7 {[%clk 0:02:55]} 12. Nc3 {[%clk 0:02:28]}  c5 {[%clk 0:02:54]} 13. Bd5 {[%clk 0:02:25]}  Nxd5 {[%clk 0:02:52]} 14. Nxd5 {[%clk 0:02:23]}  Bxd5 {[%clk 0:02:45]} 15. exd5 {[%clk 0:02:22]}  Qf6 {[%clk 0:02:45]} 16. Qg3 {[%clk 0:02:04]}  h6 {[%clk 0:02:28]} 17. Bd2 {[%clk 0:02:00]}  b4 {[%clk 0:02:23]} 18. Bf4 {[%clk 0:01:41]}  Rad8 {[%clk 0:02:07]} 19. Bxe5 {[%clk 0:01:37]}  dxe5 {[%clk 0:02:00]} 20. Rfd1 {[%clk 0:01:28]}  e4 {[%clk 0:02:00]} 21. Qb3 {[%clk 0:01:20]}  Qe5 {[%clk 0:01:44]} 22. Qc4 {[%clk 0:01:04]}  Qxb2 {[%clk 0:01:42]} 23. Rab1 {[%clk 0:00:48]}  Qc3 {[%clk 0:01:33]} 24. Qxc3 {[%clk 0:00:43]}  bxc3 {[%clk 0:01:34]} 25. Rb3 {[%clk 0:00:41]}  Rd6 {[%clk 0:01:20]} 26. Rxc3 {[%clk 0:00:40]}  Rc8 {[%clk 0:01:18]} 27. Rc4 {[%clk 0:00:35]}  f5 {[%clk 0:01:18]} 28. Kf1 {[%clk 0:00:31]}  Kf7 {[%clk 0:01:18]} 29. Ke2 {[%clk 0:00:27]}  Kf6 {[%clk 0:01:19]} 1/2-1/2


[Site "https://www.chess.com"]

[Event "Titled Tuesday Blitz August 08 Late 2023"]
[White "Polaczek, Richard"]
[Black "Novikova, Margarita"]
[WhiteFideId "200026"]
[BlackFideId "14109689"]
[WhiteElo "2362"]
[BlackElo "2151"]
[Result "1/2-1/2"]
[Round "8"]
[TimeControl "180+1"]
[Date "2023.08.08"]
[WhiteClock "0:01:22"]
[BlackClock "0:01:59"]
[Board "116"]

1. d4 {[%clk 0:02:59]}  e6 {[%clk 0:02:59]} 2. c4 {[%clk 0:02:58]}  Nf6 {[%clk 0:02:58]} 3. Nc3 {[%clk 0:02:57]}  Bb4 {[%clk 0:02:58]} 4. f3 {[%clk 0:02:57]}  d5 {[%clk 0:02:57]} 5. a3 {[%clk 0:02:56]}  Bxc3+ {[%clk 0:02:56]} 6. bxc3 {[%clk 0:02:56]}  c5 {[%clk 0:02:55]} 7. cxd5 {[%clk 0:02:54]}  exd5 {[%clk 0:02:52]} 8. e3 {[%clk 0:02:54]}  O-O {[%clk 0:02:49]} 9. Bd3 {[%clk 0:02:52]}  Re8 {[%clk 0:02:47]} 10. Ne2 {[%clk 0:02:51]}  b6 {[%clk 0:02:41]} 11. O-O {[%clk 0:02:49]}  Ba6 {[%clk 0:02:41]} 12. Ng3 {[%clk 0:02:45]}  Bxd3 {[%clk 0:02:40]} 13. Qxd3 {[%clk 0:02:44]}  Nc6 {[%clk 0:02:39]} 14. Bb2 {[%clk 0:02:37]}  Na5 {[%clk 0:02:34]} 15. Rae1 {[%clk 0:02:31]}  Nc4 {[%clk 0:02:32]} 16. Bc1 {[%clk 0:02:30]}  cxd4 {[%clk 0:02:25]} 17. cxd4 {[%clk 0:02:28]}  b5 {[%clk 0:02:23]} 18. e4 {[%clk 0:02:26]}  dxe4 {[%clk 0:02:18]} 19. fxe4 {[%clk 0:02:26]}  Ne5 {[%clk 0:02:03]} 20. Qd2 {[%clk 0:01:23]}  Nc4 {[%clk 0:02:00]} 21. Qd3 {[%clk 0:01:22]}  Ne5 {[%clk 0:02:00]} 22. Qd2 {[%clk 0:01:22]}  Nc4 {[%clk 0:01:59]} 23. Qd3 {[%clk 0:01:22]} 1/2-1/2


[Site "https://www.chess.com"]

[Event "Titled Tuesday Blitz August 08 Late 2023"]
[White "Garmendiarov"]
[Black "Orlov, Georgi"]
[BlackFideId "2011271"]
[WhiteElo "2315"]
[BlackElo "2549"]
[Result "0-1"]
[Round "8"]
[TimeControl "180+1"]
[Date "2023.08.08"]
[WhiteClock "0:00:57"]
[BlackClock "0:01:43"]
[Board "117"]

1. e4 {[%clk 0:03:00]}  b6 {[%clk 0:02:54]} 2. d4 {[%clk 0:03:00]}  Bb7 {[%clk 0:02:54]} 3. Bd3 {[%clk 0:03:01]}  e6 {[%clk 0:02:53]} 4. Nf3 {[%clk 0:03:01]}  Nf6 {[%clk 0:02:53]} 5. Qe2 {[%clk 0:03:01]}  d5 {[%clk 0:02:52]} 6. e5 {[%clk 0:03:01]}  Nfd7 {[%clk 0:02:50]} 7. O-O {[%clk 0:02:53]}  Be7 {[%clk 0:02:49]} 8. Bf4 {[%clk 0:02:49]}  c5 {[%clk 0:02:49]} 9. c3 {[%clk 0:02:50]}  Nc6 {[%clk 0:02:43]} 10. a3 {[%clk 0:02:49]}  a5 {[%clk 0:02:39]} 11. Nbd2 {[%clk 0:02:45]}  a4 {[%clk 0:02:38]} 12. Rfe1 {[%clk 0:02:35]}  g5 {[%clk 0:02:37]} 13. Be3 {[%clk 0:02:14]}  g4 {[%clk 0:02:36]} 14. Kh1 {[%clk 0:02:01]}  gxf3 {[%clk 0:02:34]} 15. Qxf3 {[%clk 0:01:59]}  Nf8 {[%clk 0:02:18]} 16. Bh6 {[%clk 0:01:47]}  Ng6 {[%clk 0:02:15]} 17. g3 {[%clk 0:01:44]}  cxd4 {[%clk 0:02:14]} 18. h4 {[%clk 0:01:29]}  dxc3 {[%clk 0:01:57]} 19. bxc3 {[%clk 0:01:29]}  Ncxe5 {[%clk 0:01:51]} 20. Bb5+ {[%clk 0:01:29]}  Bc6 {[%clk 0:01:48]} 21. Bxc6+ {[%clk 0:01:25]}  Nxc6 {[%clk 0:01:47]} 22. h5 {[%clk 0:01:11]}  Nge5 {[%clk 0:01:46]} 23. Qf4 {[%clk 0:01:07]}  Nd3 {[%clk 0:01:43]} 24. Qg4 {[%clk 0:00:57]}  Nxf2+ {[%clk 0:01:43]} 0-1


[Site "https://www.chess.com"]

[Event "Titled Tuesday Blitz August 08 Late 2023"]
[White "JERO-8914"]
[Black "AndresDelgado77"]
[WhiteElo "2440"]
[BlackElo "2311"]
[Result "1-0"]
[Round "8"]
[TimeControl "180+1"]
[Date "2023.08.08"]
[WhiteClock "0:01:11"]
[BlackClock "0:00:00"]
[Board "118"]

1. e4 {[%clk 0:02:58]}  e6 {[%clk 0:01:05]} 2. d4 {[%clk 0:02:55]}  d6 {[%clk 0:01:05]} 3. Nf3 {[%clk 0:02:54]}  Nf6 {[%clk 0:01:01]} 4. Nc3 {[%clk 0:02:54]}  Be7 {[%clk 0:00:53]} 5. e5 {[%clk 0:02:54]}  dxe5 {[%clk 0:00:48]} 6. Nxe5 {[%clk 0:02:55]}  O-O {[%clk 0:00:45]} 7. Bd3 {[%clk 0:02:55]}  c5 {[%clk 0:00:40]} 8. dxc5 {[%clk 0:02:53]}  Bxc5 {[%clk 0:00:31]} 9. O-O {[%clk 0:02:54]}  Nbd7 {[%clk 0:00:29]} 10. Bf4 {[%clk 0:02:30]}  Nxe5 {[%clk 0:00:18]} 11. Bxe5 {[%clk 0:02:31]}  Qe7 {[%clk 0:00:18]} 12. Qf3 {[%clk 0:02:27]}  Bd6 {[%clk 0:00:13]} 13. Bxd6 {[%clk 0:02:20]}  Qxd6 {[%clk 0:00:12]} 14. Rad1 {[%clk 0:02:19]}  Qb4 {[%clk 0:00:13]} 15. Ne4 {[%clk 0:02:14]}  Nxe4 {[%clk 0:00:10]} 16. Qxe4 {[%clk 0:02:15]}  Qxe4 {[%clk 0:00:10]} 17. Bxe4 {[%clk 0:02:15]}  Rb8 {[%clk 0:00:08]} 18. Rd6 {[%clk 0:02:11]}  b6 {[%clk 0:00:06]} 19. Rfd1 {[%clk 0:01:55]}  Bb7 {[%clk 0:00:06]} 20. Bxb7 {[%clk 0:01:40]}  Rxb7 {[%clk 0:00:04]} 21. Rd7 {[%clk 0:01:41]}  Rxd7 {[%clk 0:00:02]} 22. Rxd7 {[%clk 0:01:42]}  Ra8 {[%clk 0:00:01]} 23. c4 {[%clk 0:01:22]}  Kf8 {[%clk 0:00:02]} 24. b3 {[%clk 0:01:16]}  Ke8 {[%clk 0:00:03]} 25. Rb7 {[%clk 0:01:12]}  h5 {[%clk 0:00:04]} 26. Kf1 {[%clk 0:01:11]}  g6 {[%clk 0:00:00]} 27. Ke2 {[%clk 0:01:11]} 1-0


[Site "https://www.chess.com"]

[Event "Titled Tuesday Blitz August 08 Late 2023"]
[White "Rodriguez Santiago, Jaime"]
[Black "Mesa Cruz, Juan Carlos"]
[WhiteFideId "3100898"]
[BlackFideId "6423400"]
[WhiteElo "2278"]
[BlackElo "2407"]
[Result "0-1"]
[Round "8"]
[TimeControl "180+1"]
[Date "2023.08.08"]
[WhiteClock "0:00:17"]
[BlackClock "0:01:15"]
[Board "121"]

1. d4 {[%clk 0:03:00]}  Nf6 {[%clk 0:02:54]} 2. c4 {[%clk 0:03:00]}  e6 {[%clk 0:02:48]} 3. Nc3 {[%clk 0:02:59]}  Bb4 {[%clk 0:02:48]} 4. e3 {[%clk 0:02:58]}  O-O {[%clk 0:02:46]} 5. Ne2 {[%clk 0:02:57]}  c6 {[%clk 0:02:45]} 6. a3 {[%clk 0:02:56]}  Ba5 {[%clk 0:02:45]} 7. b4 {[%clk 0:02:56]}  Bc7 {[%clk 0:02:45]} 8. e4 {[%clk 0:02:55]}  d5 {[%clk 0:02:46]} 9. e5 {[%clk 0:02:50]}  Ne8 {[%clk 0:02:45]} 10. Ng3 {[%clk 0:02:45]}  a5 {[%clk 0:02:44]} 11. Bb2 {[%clk 0:02:39]}  Nd7 {[%clk 0:02:30]} 12. c5 {[%clk 0:02:26]}  f6 {[%clk 0:02:29]} 13. exf6 {[%clk 0:02:14]}  Qxf6 {[%clk 0:02:25]} 14. Qc2 {[%clk 0:01:55]}  e5 {[%clk 0:02:21]} 15. dxe5 {[%clk 0:01:36]}  Nxe5 {[%clk 0:02:22]} 16. f3 {[%clk 0:01:22]}  axb4 {[%clk 0:02:12]} 17. axb4 {[%clk 0:01:21]}  Rxa1+ {[%clk 0:02:11]} 18. Bxa1 {[%clk 0:01:21]}  Qh4 {[%clk 0:02:10]} 19. Be2 {[%clk 0:01:11]}  Qxb4 {[%clk 0:01:50]} 20. O-O {[%clk 0:01:01]}  Qxc5+ {[%clk 0:01:49]} 21. Kh1 {[%clk 0:01:02]}  Nd6 {[%clk 0:01:28]} 22. Qb2 {[%clk 0:00:48]}  Nec4 {[%clk 0:01:21]} 23. Bxc4 {[%clk 0:00:45]}  Nxc4 {[%clk 0:01:22]} 24. Qc1 {[%clk 0:00:39]}  Bxg3 {[%clk 0:01:15]} 25. hxg3 {[%clk 0:00:17]}  Rf6 {[%clk 0:01:15]} 0-1


[Site "https://www.chess.com"]

[Event "Titled Tuesday Blitz August 08 Late 2023"]
[White "Gabdushev, Ruslan"]
[Black "Fajdetic, Hrvoje"]
[WhiteFideId "4137833"]
[BlackFideId "14501945"]
[WhiteElo "2375"]
[BlackElo "2264"]
[Result "1-0"]
[Round "8"]
[TimeControl "180+1"]
[Date "2023.08.08"]
[WhiteClock "0:01:06"]
[BlackClock "0:00:04"]
[Board "122"]

1. b3 {[%clk 0:02:59]}  e5 {[%clk 0:02:58]} 2. Bb2 {[%clk 0:02:59]}  d6 {[%clk 0:02:59]} 3. e3 {[%clk 0:02:59]}  f5 {[%clk 0:02:59]} 4. d4 {[%clk 0:02:57]}  e4 {[%clk 0:02:58]} 5. d5 {[%clk 0:02:57]}  Nf6 {[%clk 0:02:58]} 6. Nh3 {[%clk 0:02:56]}  Be7 {[%clk 0:02:57]} 7. Nf4 {[%clk 0:02:54]}  O-O {[%clk 0:02:57]} 8. h4 {[%clk 0:02:52]}  a5 {[%clk 0:02:56]} 9. a4 {[%clk 0:02:45]}  Na6 {[%clk 0:02:56]} 10. Be2 {[%clk 0:02:44]}  Nc5 {[%clk 0:02:56]} 11. Na3 {[%clk 0:02:39]}  c6 {[%clk 0:02:49]} 12. Nc4 {[%clk 0:02:36]}  cxd5 {[%clk 0:02:39]} 13. Nxd5 {[%clk 0:02:34]}  Nxd5 {[%clk 0:02:39]} 14. Qxd5+ {[%clk 0:02:34]}  Be6 {[%clk 0:02:38]} 15. Qd2 {[%clk 0:02:26]}  d5 {[%clk 0:02:06]} 16. Na3 {[%clk 0:02:16]}  Bf6 {[%clk 0:02:04]} 17. O-O-O {[%clk 0:02:10]}  Bxb2+ {[%clk 0:01:59]} 18. Kxb2 {[%clk 0:02:10]}  Qf6+ {[%clk 0:01:47]} 19. Qd4 {[%clk 0:02:08]}  Rac8 {[%clk 0:01:40]} 20. Nb5 {[%clk 0:02:04]}  Qe7 {[%clk 0:01:19]} 21. f4 {[%clk 0:01:48]}  Na6 {[%clk 0:01:06]} 22. Qe5 {[%clk 0:01:36]}  Nb4 {[%clk 0:00:24]} 23. Nd4 {[%clk 0:01:33]}  Rf6 {[%clk 0:00:20]} 24. g4 {[%clk 0:01:23]}  fxg4 {[%clk 0:00:15]} 25. f5 {[%clk 0:01:20]}  Nc6 {[%clk 0:00:13]} 26. Nxc6 {[%clk 0:01:19]}  bxc6 {[%clk 0:00:12]} 27. fxe6 {[%clk 0:01:18]}  Rxe6 {[%clk 0:00:11]} 28. Qg5 {[%clk 0:01:15]}  Qb4 {[%clk 0:00:08]} 29. Bxg4 {[%clk 0:01:14]}  Ree8 {[%clk 0:00:05]} 30. Bxc8 {[%clk 0:01:12]}  Rxc8 {[%clk 0:00:06]} 31. Rhg1 {[%clk 0:01:06]}  Qb7 {[%clk 0:00:04]} 1-0


[Site "https://www.chess.com"]

[Event "Titled Tuesday Blitz August 08 Late 2023"]
[White "Fernandez Madrid, Carlos"]
[Black "Ventura Bolet, Maxim"]
[WhiteFideId "2206030"]
[BlackFideId "22238824"]
[WhiteElo "2241"]
[BlackElo "2374"]
[Result "1-0"]
[Round "8"]
[TimeControl "180+1"]
[Date "2023.08.08"]
[WhiteClock "0:01:16"]
[BlackClock "0:00:07"]
[Board "123"]

1. c4 {[%clk 0:02:58]}  g6 {[%clk 0:03:00]} 2. Nc3 {[%clk 0:02:58]}  Bg7 {[%clk 0:03:00]} 3. g3 {[%clk 0:02:58]}  d6 {[%clk 0:03:00]} 4. Bg2 {[%clk 0:02:58]}  e5 {[%clk 0:02:59]} 5. d3 {[%clk 0:02:57]}  f5 {[%clk 0:02:57]} 6. Nf3 {[%clk 0:02:57]}  Nf6 {[%clk 0:02:57]} 7. O-O {[%clk 0:02:57]}  O-O {[%clk 0:02:57]} 8. e4 {[%clk 0:02:57]}  c6 {[%clk 0:02:57]} 9. exf5 {[%clk 0:02:56]}  gxf5 {[%clk 0:02:58]} 10. Bg5 {[%clk 0:02:56]}  h6 {[%clk 0:02:55]} 11. Bh4 {[%clk 0:02:56]}  Qe8 {[%clk 0:02:53]} 12. b4 {[%clk 0:02:54]}  Qh5 {[%clk 0:02:52]} 13. b5 {[%clk 0:02:54]}  f4 {[%clk 0:02:49]} 14. Nd2 {[%clk 0:02:50]}  Bg4 {[%clk 0:02:40]} 15. Bf3 {[%clk 0:02:46]}  Nbd7 {[%clk 0:02:29]} 16. bxc6 {[%clk 0:02:43]}  bxc6 {[%clk 0:02:30]} 17. Nce4 {[%clk 0:02:38]}  Bxf3 {[%clk 0:02:26]} 18. Qxf3 {[%clk 0:02:35]}  Qxf3 {[%clk 0:02:25]} 19. Nxf3 {[%clk 0:02:34]}  Nxe4 {[%clk 0:02:25]} 20. dxe4 {[%clk 0:02:34]}  Nc5 {[%clk 0:02:20]} 21. Be7 {[%clk 0:02:31]}  Nxe4 {[%clk 0:02:17]} 22. Bxf8 {[%clk 0:02:30]}  Rxf8 {[%clk 0:02:18]} 23. Rad1 {[%clk 0:02:26]}  Rf6 {[%clk 0:01:57]} 24. Kg2 {[%clk 0:02:25]}  Bf8 {[%clk 0:01:37]} 25. Rfe1 {[%clk 0:02:21]}  Nc3 {[%clk 0:01:33]} 26. Rd2 {[%clk 0:02:15]}  c5 {[%clk 0:01:02]} 27. Rc1 {[%clk 0:02:08]}  Ne4 {[%clk 0:01:00]} 28. Re2 {[%clk 0:02:06]}  Ng5 {[%clk 0:00:57]} 29. Nxg5 {[%clk 0:02:05]}  hxg5 {[%clk 0:00:58]} 30. f3 {[%clk 0:02:05]}  g4 {[%clk 0:00:58]} 31. gxf4 {[%clk 0:01:59]}  Rxf4 {[%clk 0:00:55]} 32. Rf2 {[%clk 0:01:52]}  Be7 {[%clk 0:00:37]} 33. Rb1 {[%clk 0:01:51]}  Rxc4 {[%clk 0:00:35]} 34. Rb7 {[%clk 0:01:46]}  Bh4 {[%clk 0:00:33]} 35. Rd2 {[%clk 0:01:42]}  gxf3+ {[%clk 0:00:15]} 36. Kxf3 {[%clk 0:01:40]}  Rf4+ {[%clk 0:00:16]} 37. Ke3 {[%clk 0:01:39]}  Rf6 {[%clk 0:00:16]} 38. Rg2+ {[%clk 0:01:34]}  Kf8 {[%clk 0:00:16]} 39. Rxa7 {[%clk 0:01:34]}  d5 {[%clk 0:00:16]} 40. Rgg7 {[%clk 0:01:31]}  c4 {[%clk 0:00:14]} 41. Rh7 {[%clk 0:01:31]}  d4+ {[%clk 0:00:11]} 42. Ke4 {[%clk 0:01:30]}  Kg8 {[%clk 0:00:11]} 43. Rxh4 {[%clk 0:01:29]}  c3 {[%clk 0:00:11]} 44. Rg4+ {[%clk 0:01:25]}  Kh8 {[%clk 0:00:10]} 45. Rg2 {[%clk 0:01:23]}  Rd6 {[%clk 0:00:08]} 46. Kxe5 {[%clk 0:01:22]}  Rd8 {[%clk 0:00:07]} 47. Rc7 {[%clk 0:01:17]}  d3 {[%clk 0:00:06]} 48. Rxc3 {[%clk 0:01:16]}  d2 {[%clk 0:00:07]} 49. Rh3# {[%clk 0:01:16]} 1-0


[Site "https://www.chess.com"]